[Event "Fagernes GM Open Autumn 2024"]
[Site "Fagernes"]
[Date "2024.10.06"]
[Round "1.1"]
[White "Krivenko, Dion"]
[Black "Jumabayev, Rinat"]
[Result "0-1"]
[ECO "B30"]
[WhiteElo "2244"]
[BlackElo "2577"]
[Annotator "TA"]
[PlyCount "100"]
[EventDate "2024.10.03"]
[EventType "swiss"]
[EventCountry "NOR"]
[SourceTitle "playchess.com"]
[Source "ChessBase"]
[SourceQuality "1"]
[TimeControl "40/6000:2400+30"]

{[%evp 10,100,29,24,39,28,38,30,33,17,27,0,1,0,0,-50,-37,-112,-122,-135,-114,-106,-121,-115,-92,-101,-97,-91,-85,-91,-86,-114,-94,-108,-82,-104,-91,-91,-63,-71,-63,-97,-98,-99,-108,-104,-108,-103,-100,-117,-110,-110,-110,-271,-309,-287,-310,-311,-310,-293,-314,-314,-302,-260,-260,-442,-450,-442,-321,-337,-305,-315,-319,-319,-319,-358,-339,-433,-426,-449,-417,-721,-709,-816,-842,-1192,-1195,-1249,-1238,-1508,-1266,-1939,-1739]} 1. e4 {[%emt 0:00:00]} c5 {[%emt 0:00:00]} 2. Nf3 {[%emt 0:00:00]} Nc6 {[%emt 0:00:00]} 3. Bb5 {[%emt 0:00:00]} e6 {[%emt 0:00:00]} 4. O-O {[%emt 0:00:00]} Nge7 {[%emt 0:00:00]} 5. d4 {[%emt 0:00:00]} cxd4 {[%emt 0:00:00]} 6. Nxd4 {[%emt 0:00:00]} Ng6 {[%emt 0:00:00]} 7. Be3 {[%emt 0:00:00]} Be7 {[%emt 0:04:37]} 8. Be2 {[%emt 0:00:53]} O-O {[%emt 0:00:00] White has an edge.} 9. c4 {[%emt 0:00:00]} b6 {[%emt 0:05:00]} 10. Nxc6 {[%emt 0:13:56]} dxc6 {[%emt 0:01:48]} 11. Qxd8 {[%emt 0:03:24]} Rxd8 {[%emt 0:00:00]} 12. f4 {[%emt 0:00:45]} (12. Nc3 $11) 12... e5 $1 $15 {[%emt 0:01:35]} 13. g3 {[%emt 0:04:01]} (13. f5 $15 Nf4 14. Bxf4 exf4 15. a4) 13... Bh3 $17 {[%emt 0:04:59]} 14. Rf2 {[%emt 0:06:25]} exf4 {[%emt 0:07:50]} 15. gxf4 {[%emt 0:00:24]} Bh4 {[%emt 0:00:33] Black is more active.} 16. Nc3 {[%emt 0:00:00]} Bxf2+ {[%emt 0:02:23]} 17. Kxf2 {[%emt 0:00:00]} Bd7 {[%emt 0:00:22]} 18. a4 {[%emt 0:00:29]} f5 {[%emt 0:03:22]} 19. e5 {[%emt 0:08:29]} Nf8 {[%emt 0:10:43]} 20. Bf3 {[%emt 0:01:37]} Ne6 {[%emt 0:01:24]} 21. b4 {[%emt 0:07:20]} Be8 {[%emt 0:07:43]} 22. b5 {[%emt 0:15:00]} Rd3 {[%emt 0:04:49]} 23. Rc1 {[%emt 0:07:14]} Rc8 {[%emt 0:02:39]} 24. bxc6 {[%emt 0:05:15]} Bxc6 {[%emt 0:16:31]} 25. Nd5 {[%emt 0:06:17] [#]} Bxd5 {[%emt 0:01:19]} (25... Bxa4 $2 26. Ne7+ Kf8 27. Nxc8 $18) 26. Bxd5 {[%emt 0:00:36]} Kf7 {[%emt 0:00:00] And now ...Ra3 would win.} 27. a5 {[%emt 0:01:31]} b5 {[%emt 0:14:53]} (27... bxa5 $6 28. Rb1 Ke7 29. Rb7+ Rc7 30. Bc5+ Ke8 (30... Nxc5 $2 31. Rxc7+ Kd8 32. Rxc5 $18) 31. Rb8+ Kd7 32. Bd6 Nxf4 33. Bxc7 Kxc7 (33... Nxd5 34. cxd5 Kxc7 35. e6 $11) 34. Rb7+ Kc8 35. Rxg7 $11) 28. a6 {[%emt 0:13:04] [#]} ({Avoid the trap} 28. Bxe6+ $2 Kxe6 29. cxb5 Rxc1 30. Bxc1 Rd5 $19) 28... Rc7 $1 {[%emt 0:05:00]} 29. Ke2 {[%emt 0:02:47]} bxc4 {[%emt 0:00:00]} 30. Bxc4 {[%emt 0:00:00]} Rdd7 {[%emt 0:00:00]} 31. Bb3 $2 {[%emt 0:00:02]} (31. Bc5 $17) 31... Rxc1 $19 {[%emt 0:00:00]} 32. Bxc1 {[%emt 0:00:00][%mdl 4096] Endgame. KRN-KB} Rc7 {[%emt 0:00:00]} 33. Be3 {[%emt 0:00:00]} Rc6 {[%emt 0:00:00]} 34. Bxa7 {[%emt 0:00:00]} Rxa6 {[%emt 0:00:00]} 35. Be3 {[%emt 0:00:00]} Ra3 {[%emt 0:00:00]} 36. Bc4 {[%emt 0:00:00]} Ke7 {[%emt 0:00:13]} 37. Kd2 $2 {[%emt 0:00:00]} (37. Bd3 {is a better defense.}) 37... Ra1 {[%emt 0:00:28]} 38. Bd5 {[%emt 0:00:00]} Ra4 {[%emt 0:00:30]} 39. Bb3 {[%emt 0:00:00]} Rb4 {[%emt 0:00:22]} 40. Bc2 {[%emt 0:00:00]} g6 {[%emt 0:00:08][%cal Ob4b2]} (40... Nxf4 41. Bc5+ (41. Bxf5 $2 {is the wrong capture.} Kf7 $19) 41... Ke6 42. Bxb4 $18) 41. Kc3 {[%emt 0:39:28]} Rb8 {[%emt 0:41:10]} 42. Bb3 {[%emt 0:00:52]} Ra8 {[%emt 0:00:28]} 43. Bd5 {[%emt 0:00:00]} Ra5 {[%emt 0:00:00]} 44. Bb3 {[%emt 0:00:00]} Ra1 {[%emt 0:00:00] Inhibits Bc1. ...Rh1 is the strong threat.} 45. Kc4 {[%emt 0:00:00]} (45. Bd5 $142) 45... Rh1 {[%emt 0:00:00] Black is clearly winning.} 46. Bd2 {[%emt 0:00:00]} Rxh2 {[%emt 0:00:00]} 47. Bb4+ {[%emt 0:00:00]} Kf7 {[%emt 0:00:00][%cal Oh7h5]} 48. Bc3 {[%emt 0:00:00]} Rh3 {[%emt 0:00:00]} 49. Bd2 {[%emt 0:00:00]} h5 {[%emt 0:00:00]} 50. Kb4 {[%emt 0:00:00]} h4 {[%emt 0:00:00] White got outplayed after the opening.   Weighted Error Value: White=0.56/Black=0.08 (flawless) .  Loses game:     	White=1     	---        Mistake:       	White=4     	---        Inaccurate:     	White=3     	Black=1      OK:         	White=11    	Black=22     Best:        	White=3     	---        Strong:       	---       	Black=2} 0-1

[Event "Fagernes GM Open Autumn 2024"]
[Site "Fagernes"]
[Date "2024.10.06"]
[Round "1.2"]
[White "Sasikiran, Krishnan"]
[Black "Skotheim, Andreas"]
[Result "1/2-1/2"]
[ECO "C79"]
[WhiteElo "2571"]
[BlackElo "2234"]
[Annotator "TA"]
[PlyCount "55"]
[EventDate "2024.10.03"]
[EventType "swiss"]
[EventCountry "NOR"]
[SourceTitle "playchess.com"]
[Source "ChessBase"]
[SourceQuality "1"]
[TimeControl "40/6000:2400+30"]

{[%evp 15,55,29,39,20,26,25,55,37,56,32,41,41,44,31,27,0,0,0,10,0,54,28,42,36,67,45,50,36,48,56,64,62,67,60,49,0,16,20,14,0,0,0]} 1. e4 {[%emt 0:00:00]} e5 {[%emt 0:00:00]} 2. Nf3 {[%emt 0:00:00]} Nc6 {[%emt 0:00:00]} 3. Bb5 {[%emt 0:00:00]} a6 {[%emt 0:00:00]} 4. Ba4 {[%emt 0:00:00]} Nf6 {[%emt 0:00:00]} 5. O-O {[%emt 0:00:00]} d6 {[%emt 0:00:00]} 6. Re1 {[%emt 0:00:00]} Bd7 {[%emt 0:00:00]} 7. c3 {[%emt 0:00:00]} g6 {[%emt 0:00:00]} 8. d4 {[%emt 0:00:00]} Bg7 {[%emt 0:00:00]} 9. h3 {[%emt 0:00:57]} O-O {[%emt 0:00:00]} 10. Bc2 {[%emt 0:00:00]} Nh5 {[%emt 0:00:00]} 11. a4 {[%emt 0:00:06] White is slightly better.} Qe8 {[%emt 0:00:00]} 12. a5 {[%emt 0:02:49]} Kh8 {[%emt 0:06:12]} 13. Ra3 {[%emt 0:05:06]} f5 {[%emt 0:05:18]} 14. Nbd2 {[%emt 0:02:31]} Rd8 {[%emt 0:29:49]} 15. b4 {[%emt 0:26:11]} Nf4 {[%emt 0:10:54]} 16. d5 {[%emt 0:16:22]} Ne7 {[%emt 0:02:50]} 17. c4 {[%emt 0:00:20]} Ng8 {[%emt 0:06:16]} (17... c6 $11) 18. Nf1 {[%emt 0:10:25] Black must now prevent Bxf4.} Bh6 {[%emt 0:06:26]} 19. Ng3 {[%emt 0:07:55]} Qf7 {[%emt 0:02:31]} 20. Bb2 {[%emt 0:04:11]} Rde8 {[%emt 0:03:01]} 21. Ba4 {[%emt 0:02:04]} Nf6 {[%emt 0:04:18]} 22. Bxd7 {[%emt 0:07:22]} Qxd7 {[%emt 0:00:28]} 23. exf5 {[%emt 0:03:11]} gxf5 {[%emt 0:00:00][%cal Of4h3]} 24. Nh4 {[%emt 0:01:34]} Ng8 $1 {[%emt 0:02:30]} 25. Ne2 {[%emt 0:02:58]} (25. Qc2 $14) 25... Ng6 {[%emt 0:04:36] The position is equal.} 26. Nxg6+ {[%emt 0:01:52]} hxg6 {[%emt 0:00:00]} 27. f4 {[%emt 0:00:00] And now fxe5 would win.} Kh7 {[%emt 0:01:05]} 28. fxe5 {[%emt 0:01:06] Weighted Error Value: White=0.13 (very precise) /Black=0.13 (very precise) .  Mistake:       	White=1     	Black=1      Inaccurate:     	White=2     	Black=2      OK:         	White=6     	Black=4      Best:        	White=1     	Black=1      Strong:       	---       	Black=1} 1/2-1/2

[Event "Fagernes GM Open Autumn 2024"]
[Site "Fagernes"]
[Date "2024.10.06"]
[Round "1.3"]
[White "Welling, Gerard"]
[Black "Urkedal, Frode Olav Olsen"]
[Result "0-1"]
[ECO "C47"]
[WhiteElo "2206"]
[BlackElo "2559"]
[Annotator "TA"]
[PlyCount "50"]
[EventDate "2024.10.03"]
[EventType "swiss"]
[EventCountry "NOR"]
[SourceTitle "playchess.com"]
[Source "ChessBase"]
[SourceQuality "1"]
[TimeControl "40/6000:2400+30"]

{[%evp 9,50,-28,12,11,9,0,-6,0,43,47,50,43,47,22,25,9,27,0,0,-20,-21,-61,-71,-108,-78,-102,-92,-85,-37,-73,-62,-331,-330,-315,-310,-517,-507,-484,-477,-1441,-1479,-1406,-1403]} 1. e4 {[%emt 0:00:00]} e5 {[%emt 0:00:00]} 2. Nc3 {[%emt 0:00:00]} Nf6 {[%emt 0:00:00]} 3. Nf3 {[%emt 0:00:00]} Nc6 {[%emt 0:00:00]} 4. h3 {[%emt 0:00:00]} Bb4 {[%emt 0:00:14][%cal Bf8b4,Bb4a5,Ba5b6][%mdl 32]} 5. a3 {[%emt 0:00:00]} Ba5 {[%emt 0:01:33]} (5... Bxc3 $5 6. dxc3 h6 $11) 6. Bd3 {[%emt 0:00:00]} (6. b4 $5 Bb6 $8 7. Bd3 $11) 6... d6 {[%emt 0:00:03]} 7. b4 {[%emt 0:00:32]} Bb6 {[%emt 0:00:00]} 8. Na4 {[%emt 0:03:19] The position is equal.} d5 {[%emt 0:02:44]} (8... Nxe4 $5 9. Bxe4 (9. Nxb6 axb6 10. b5 Na7 $11) 9... d5 $16) 9. exd5 {[%emt 0:01:27]} Qxd5 {[%emt 0:00:00] ...e4 is the strong threat.} 10. Nc3 {[%emt 0:00:00]} Qd6 {[%emt 0:02:06]} 11. Bb2 {[%emt 0:00:15]} O-O {[%emt 0:01:22][%cal Oe5e4]} 12. O-O {[%emt 0:01:49]} a5 {[%emt 0:02:11]} 13. b5 {[%emt 0:27:48]} Nd4 {[%emt 0:00:57]} 14. a4 {[%emt 0:19:17]} Re8 {[%emt 0:03:44] ...e4 would now be deadly.} 15. Ng5 {[%emt 0:06:09]} h6 $1 {[%emt 0:00:25]} 16. Ba3 {[%emt 0:00:53]} Qd8 {[%emt 0:01:04]} 17. Nge4 {[%emt 0:00:05] [#]} Nxe4 $1 {[%emt 0:00:36]} 18. Bxe4 {[%emt 0:03:51]} Qh4 {[%emt 0:08:21]} (18... f5 $17 19. Bd5+ Be6 20. Bxb7 Rb8) 19. Kh2 {[%emt 0:00:42]} c6 {[%emt 0:00:59] Black is more active.} 20. Qe1 $2 {[%emt 0:03:47][%mdl 8192] White does not recover from this.} (20. Rb1 $15 Bc7 21. d3) 20... f5 $19 {[%emt 0:00:11]} 21. Bd3 {[%emt 0:00:10]} e4 {[%emt 0:04:04][%cal Od4f3] aiming for ...Nf3+!} 22. Bc4+ $2 {[%emt 0:05:57]} (22. f4 Qxe1 23. Rfxe1) 22... Be6 {[%emt 0:00:00] Black is clearly winning.} 23. Bxe6+ {[%emt 0:00:26]} Rxe6 {[%emt 0:00:00]} 24. Qd1 {[%emt 0:06:08] [#] Repels Nf3+} (24. f4 $142 Qxe1 25. Raxe1) 24... Nf3+ $1 {[%emt 0:04:44][%mdl 512]} 25. Kh1 {[%emt 0:00:00]} Ng5 {[%emt 0:02:45] Weighted Error Value: White=0.68/Black=0.06 (flawless) .  Loses game:     	White=1     	---        Mistake:       	White=2     	Black=1      Inaccurate:     	White=4     	Black=1      OK:         	White=4     	Black=9      Best:        	White=1     	Black=1      Strong:       	---       	Black=2      Brilliant:      	---       	Black=1} 0-1

[Event "Fagernes GM Open Autumn 2024"]
[Site "Fagernes"]
[Date "2024.10.06"]
[Round "1.4"]
[White "Amar, Elham"]
[Black "Krishnan, Ritvik"]
[Result "1/2-1/2"]
[ECO "C50"]
[WhiteElo "2540"]
[BlackElo "2206"]
[Annotator "TA"]
[PlyCount "84"]
[EventDate "2024.10.03"]
[EventType "swiss"]
[EventCountry "NOR"]
[SourceTitle "playchess.com"]
[Source "ChessBase"]
[SourceQuality "1"]
[TimeControl "40/6000:2400+30"]

{[%evp 12,84,14,20,8,5,8,7,8,0,0,8,0,0,14,0,0,0,0,0,16,12,24,8,9,-18,-40,-114,-110,-115,-115,-116,-88,-77,-88,-91,-43,-46,-41,-47,-47,-43,-11,-33,0,-12,0,-22,0,0,0,0,0,0,0,0,0,0,0,0,0,0,0,0,0,0,0,0,0,0,0,0,0,0,0]} 1. e4 {[%emt 0:00:00]} e5 {[%emt 0:00:00]} 2. Nf3 {[%emt 0:00:00]} Nc6 {[%emt 0:00:00]} 3. Bc4 {[%emt 0:00:00]} Bc5 {[%emt 0:00:00]} 4. Nc3 {[%emt 0:00:00]} Nf6 {[%emt 0:00:00]} 5. d3 {[%emt 0:00:00]} h6 {[%emt 0:00:00]} 6. O-O {[%emt 0:00:00]} d6 {[%emt 0:00:33]} 7. Na4 {[%emt 0:00:00]} Bb6 {[%emt 0:00:23]} 8. a3 {[%emt 0:00:00]} O-O {[%emt 0:00:39]} 9. Re1 {[%emt 0:00:00]} Re8 {[%emt 0:02:27]} 10. b4 {[%emt 0:04:58]} Ne7 {[%emt 0:19:08]} 11. Nxb6 {[%emt 0:03:57]} axb6 {[%emt 0:01:20]} 12. Bb2 {[%emt 0:09:46]} Ng6 {[%emt 0:00:39]} 13. h3 {[%emt 0:03:37]} Be6 {[%emt 0:04:19]} 14. Bxe6 {[%emt 0:00:00]} Rxe6 {[%emt 0:00:00]} 15. c4 {[%emt 0:00:14]} Nh7 {[%emt 0:09:34]} 16. d4 {[%emt 0:15:27]} Ng5 {[%emt 0:03:05]} 17. Nxg5 {[%emt 0:01:27]} Qxg5 {[%emt 0:00:00]} 18. Re3 {[%emt 0:00:00]} (18. g3 {simplifies} f5 19. dxe5 fxe4 20. Rxe4 Nxe5 21. Bxe5 Rxe5 22. Qd4) 18... exd4 {[%emt 0:03:06]} 19. Qxd4 {[%emt 0:02:45]} ({White should play} 19. Bxd4 $15 h5 20. b5) 19... Nf4 $17 {[%emt 0:02:54][%csl Gf4][%cal Rg5g2] [#]} 20. g3 {[%emt 0:02:53]} Nxh3+ {[%emt 0:02:14]} 21. Kg2 {[%emt 0:05:44]} Nf4+ {[%emt 0:01:16]} (21... Rf6 {is more complex.} 22. Rf1 Nf4+ 23. Kg1 c5) 22. Kf1 {[%emt 0:00:00]} Nh5 {[%emt 0:00:03]} 23. Qd5 {[%emt 0:00:19]} c6 {[%emt 0:03:34]} (23... Qg4 $17 24. Rae1 Rae8) 24. Qxg5 $15 {[%emt 0:00:00]} hxg5 {[%emt 0:00:00]} 25. Rd1 {[%emt 0:13:46]} Nf6 {[%emt 0:03:35]} 26. Bxf6 {[%emt 0:01:02]} gxf6 {[%emt 0:00:00][%mdl 4096] Endgame. KRR-KRR} 27. g4 {[%emt 0:00:00]} Kf8 {[%emt 0:01:31]} 28. f3 $1 {[%emt 0:00:02] The position is equal.} Ke7 {[%emt 0:03:59]} 29. Red3 {[%emt 0:00:28]} Ra7 {[%emt 0:05:14]} 30. Kf2 {[%emt 0:05:32]} c5 {[%emt 0:00:24]} 31. b5 {[%emt 0:04:53]} Ra4 {[%emt 0:00:45]} 32. Rc3 {[%emt 0:00:00]} Kd7 {[%emt 0:00:43]} 33. Rd5 {[%emt 0:02:32]} Kc7 {[%emt 0:02:09]} 34. Kg2 {[%emt 0:03:29]} Re8 {[%emt 0:00:19]} 35. Rf5 {[%emt 0:00:00]} Re6 {[%emt 0:00:00]} 36. Rd5 {[%emt 0:01:46]} Ra8 {[%emt 0:00:26]} 37. Rcd3 {[%emt 0:00:00]} Rd8 {[%emt 0:00:00]} (37... Ra4 $5 38. Rc3 $8 $11) 38. Rf5 {[%emt 0:00:00]} Rh8 {[%emt 0:01:31]} 39. Rfd5 {[%emt 0:00:00]} Ra8 {[%emt 0:00:48]} 40. Rf5 {[%emt 0:00:06]} Ra4 {[%emt 0:00:03]} 41. Rc3 {[%emt 0:40:34]} Kd7 {[%emt 0:40:56]} 42. Kg3 {[%emt 0:00:17]} Ke7 {[%emt 0:03:08] Weighted Error Value: White=0.05 (flawless) /Black=0.08 (flawless) .  Mistake:       	White=1     	Black=1      Inaccurate:     	White=1     	Black=1      OK:         	White=15    	Black=10     Best:        	White=2     	Black=2      Strong:       	White=1     	---} 1/2-1/2

[Event "Fagernes GM Open Autumn 2024"]
[Site "Fagernes"]
[Date "2024.10.06"]
[Round "1.5"]
[White "Westrum, Kim Roger Hansen"]
[Black "Raja Rithvik R"]
[Result "0-1"]
[ECO "E14"]
[WhiteElo "2205"]
[BlackElo "2514"]
[Annotator "TA"]
[PlyCount "80"]
[EventDate "2024.10.03"]
[EventType "swiss"]
[EventCountry "NOR"]
[SourceTitle "playchess.com"]
[Source "ChessBase"]
[SourceQuality "1"]
[TimeControl "40/6000:2400+30"]

{[%evp 19,80,-9,-15,-10,0,0,0,0,-8,0,-11,-2,0,-34,-30,-24,-27,-27,0,-55,-50,-59,-59,-45,-59,-64,-18,-96,-95,-90,-100,-207,-97,-209,-146,-168,-167,-169,-169,-313,-150,-160,-155,-249,-214,-233,-184,-229,-191,-191,-175,-187,-177,-336,-335,-597,-597,-639,-639,-991,-961,-888,-866]} 1. c4 {[%emt 0:00:00]} e6 {[%emt 0:00:00]} 2. Nf3 {[%emt 0:00:00]} d5 {[%emt 0:00:00]} 3. e3 {[%emt 0:00:00]} Nf6 {[%emt 0:00:00]} 4. Nc3 {[%emt 0:00:00]} b6 {[%emt 0:00:00]} 5. b3 {[%emt 0:03:03]} Bb7 {[%emt 0:00:00]} 6. Bb2 {[%emt 0:00:00]} Nbd7 {[%emt 0:00:00]} 7. cxd5 {[%emt 0:03:22]} exd5 {[%emt 0:00:00]} 8. d4 {[%emt 0:00:00]} a6 {[%emt 0:00:00]} 9. Bd3 {[%emt 0:00:00]} Bd6 {[%emt 0:00:00]} 10. O-O {[%emt 0:00:05]} O-O {[%emt 0:00:00]} 11. Rc1 {[%emt 0:02:47]} Qe7 {[%emt 0:04:43]} 12. Qe2 {[%emt 0:02:41]} Ne4 {[%emt 0:01:50]} 13. Rc2 {[%emt 0:12:46] The position is equal.} f5 {[%emt 0:02:23]} 14. g3 {[%emt 0:02:44]} Rf6 {[%emt 0:13:39]} 15. Rfc1 {[%emt 0:06:44]} Rh6 {[%emt 0:00:59]} 16. Na4 {[%emt 0:10:34][%cal Oc2c7]} c6 {[%emt 0:16:53]} 17. Ne5 {[%emt 0:06:22]} Bxe5 {[%emt 0:06:39]} 18. dxe5 {[%emt 0:00:18]} b5 {[%emt 0:00:00]} 19. Bxe4 {[%emt 0:00:47]} (19. Nc3 $11) 19... fxe4 $15 {[%emt 0:00:13]} 20. Nc5 {[%emt 0:00:00]} Nxc5 {[%emt 0:05:51]} 21. Rxc5 {[%emt 0:00:00] White is weak on the light squares} Rf8 {[%emt 0:00:00]} 22. a4 {[%emt 0:15:12][%cal Ra4b5]} Rf5 {[%emt 0:07:15] Black has more active pieces.} (22... Qe6 $15 23. Qf1 b4) 23. Qg4 {[%emt 0:24:32] [#]} (23. R5c2 $11) 23... Rg5 $1 $17 {[%emt 0:01:47]} 24. Qf4 {[%emt 0:00:40][%cal Oe5e6]} Rgh5 {[%emt 0:00:00]} 25. Kf1 {[%emt 0:03:42] [#]} (25. axb5 $17 Rxh2 26. Kf1 (26. Bd4 $2 Rh1+ 27. Kg2 R6h2#) 26... axb5 27. e6 Rxe6 (27... Qxe6 28. Qb8+ Qc8 29. Qxc8+ Bxc8 30. Rxc6 $15) 28. Rxb5 cxb5 29. Rc7) 25... Rxh2 {[%emt 0:10:50]} (25... Qe6 $1 $19 {is more deadly.} 26. g4 Rxh2 27. axb5 axb5) 26. Ke2 {[%emt 0:00:00]} (26. axb5 $17 axb5 27. e6 Rxe6 (27... Qxe6 28. Qb8+ Qc8 29. Qxc8+ Bxc8 30. Rxc6 $17) 28. Rxd5 cxd5 29. Rc7) 26... b4 {[%emt 0:07:07]} 27. Bd4 {[%emt 0:00:30]} Qe8 {[%emt 0:03:06]} 28. R5c2 {[%emt 0:02:18]} Bc8 {[%emt 0:03:20]} 29. Rg1 {[%emt 0:00:00]} (29. e6 $142 Rxe6 (29... Qxe6 30. Rxc6 Qg4+ 31. Kd2 $11) 30. Kd1) 29... Rg6 {[%emt 0:02:02]} (29... Be6 $19 {has better winning chances.} 30. Kd2 Rg6) 30. e6 {[%emt 0:00:01]} Bxe6 {[%emt 0:02:55]} ({Much less strong is} 30... Qxe6 31. Qb8) 31. Rgc1 {[%emt 0:00:18]} (31. Kd1 $17) 31... Bd7 {[%emt 0:01:07]} 32. Rf1 {[%emt 0:00:01]} Qc8 {[%emt 0:02:58]} 33. Kd2 {[%emt 0:00:00]} Rh5 {[%emt 0:00:15]} 34. Kc1 {[%emt 0:00:00]} Rf5 {[%emt 0:01:58]} 35. Qh4 {[%emt 0:00:00]} Rf7 {[%emt 0:00:05] Repels Qe7. ...Bg4 would now be deadly.} 36. Kb2 $2 {[%emt 0:00:00]} (36. Qh5) 36... Bg4 $19 {[%emt 0:00:25] Strongly threatening ...Rh6.} 37. Rfc1 $2 {[%emt 0:00:00]} (37. Bb6 {was worth a try.}) 37... Rh6 {[%emt 0:01:05] Black is clearly winning.} 38. Qg5 {[%emt 0:00:00]} Rh5 {[%emt 0:00:00]} 39. Rxc6 {[%emt 0:00:00]} Rxf2+ {[%emt 0:01:07]} 40. Kb1 {[%emt 0:00:00]} Rxg5 {[%emt 0:00:00] Weighted Error Value: White=0.63/Black=0.21 (precise) .  Missed win:     	---       	Black=1      Mistake:       	White=8     	Black=2      Inaccurate:     	White=2     	Black=1      OK:         	White=7     	Black=9      Best:        	White=1     	Black=4      Strong:       	---       	Black=1} 0-1

[Event "Fagernes GM Open Autumn 2024"]
[Site "Fagernes"]
[Date "2024.10.06"]
[Round "1.6"]
[White "Ghasi, Ameet K"]
[Black "Gudbrandsen, Gustav"]
[Result "1-0"]
[ECO "A05"]
[WhiteElo "2503"]
[BlackElo "2197"]
[Annotator "TA"]
[PlyCount "57"]
[EventDate "2024.10.03"]
[EventType "swiss"]
[EventCountry "NOR"]
[SourceTitle "playchess.com"]
[Source "ChessBase"]
[SourceQuality "1"]
[TimeControl "40/6000:2400+30"]

{[%evp 12,57,9,-8,20,0,24,0,1,0,40,14,31,15,52,27,31,26,35,46,43,43,45,41,28,20,89,80,80,87,142,150,150,124,188,158,270,256,388,389,314,179,582,587,587,587,1396,1277]} 1. Nf3 {[%emt 0:00:53]} Nf6 {[%emt 0:00:00]} 2. g3 {[%emt 0:00:00]} c5 {[%emt 0:00:18]} 3. Bg2 {[%emt 0:00:00]} Nc6 {[%emt 0:00:00]} 4. O-O {[%emt 0:00:51]} g6 {[%emt 0:01:58]} 5. d3 {[%emt 0:02:42]} Bg7 {[%emt 0:00:34]} 6. e4 {[%emt 0:00:00]} O-O {[%emt 0:00:09]} 7. c3 {[%emt 0:01:08]} e6 {[%emt 0:09:29]} 8. Re1 {[%emt 0:03:28]} d6 {[%emt 0:10:26]} 9. a3 {[%emt 0:05:37]} e5 {[%emt 0:03:06] The position is equal.} 10. b4 {[%emt 0:02:21]} Bg4 {[%emt 0:00:44]} 11. h3 {[%emt 0:03:14]} (11. b5 $5 Ne7 12. a4 $14) 11... Bxf3 {[%emt 0:00:00]} 12. Qxf3 {[%emt 0:00:00]} Qd7 {[%emt 0:02:39]} 13. Nd2 {[%emt 0:02:25][%cal Bb1d2,Bd2b3,Bb3c5][%mdl 32]} b5 {[%emt 0:04:30]} 14. bxc5 {[%emt 0:12:54]} dxc5 {[%emt 0:00:20]} 15. Nb3 {[%emt 0:00:00]} c4 {[%emt 0:06:40]} 16. dxc4 {[%emt 0:02:17]} bxc4 {[%emt 0:00:00]} 17. Nc5 {[%emt 0:01:59]} Qe7 {[%emt 0:01:50]} 18. Be3 {[%emt 0:00:58]} Na5 {[%emt 0:00:23]} (18... Rfc8 $11 {keeps the balance.}) 19. Rab1 $16 {[%emt 0:02:24]} Rfb8 {[%emt 0:05:10]} 20. Rb4 {[%emt 0:01:47]} Nd7 {[%emt 0:06:03]} ({Black should try} 20... Rb6) 21. Nxd7 {[%emt 0:08:16]} Qxd7 {[%emt 0:00:00]} 22. Rd1 {[%emt 0:00:00] Repels Qd3. White wants to mate with Rxb8+. White is more active.} Qc7 {[%emt 0:02:34]} (22... Qc6 $16 {keeps fighting.} 23. Rd5 Nb7) 23. Rd5 $18 {[%emt 0:06:30]} Nb3 {[%emt 0:00:38]} (23... Nb7 $16 {was necessary.} 24. Bf1 Nd6) 24. Bf1 {[%emt 0:02:58][%cal Bg2f1,Bf1c4,Bc4d5][%mdl 32]} Rxb4 {[%emt 0:03:10]} (24... Na5 $142 25. Ra4 Nb7 26. Rxc4 (26. Bxc4 a5 $18) (26. Bxa7 Rc8 $18) 26... Qe7) 25. axb4 {[%emt 0:00:21]} ({Weaker is} 25. cxb4 c3 $11) 25... a5 {[%emt 0:00:49]} 26. bxa5 {[%emt 0:08:12]} (26. b5 $142 a4 27. b6) 26... Rxa5 $2 {[%emt 0:00:00] [#]} (26... Nxa5 {is tougher.} 27. Qd1 Nb7) 27. Bxc4 $1 {[%emt 0:14:29][%mdl 512] White is clearly winning.} Rxd5 {[%emt 0:06:20]} 28. Bxd5 {[%emt 0:00:00] This pair of bishops is nice.} Na5 {[%emt 0:01:47] [#]} 29. Bb6 $1 {[%emt 0:00:00][%mdl 512] Weighted Error Value: White=0.11 (very precise) /Black=0.60.  Mistake:       	White=1     	Black=6      Inaccurate:     	White=1     	Black=3      OK:         	White=6     	Black=5      Best:        	White=3     	---        Brilliant:      	White=2     	---} 1-0